[Event "Susha Chess Rapid 2022"]
[Site "Shusha"]
[Date "2022.09.22"]
[Round "2.1"]
[White "Wang, Hao"]
[Black "Kasimdzhanov, Rustam"]
[Result "1/2-1/2"]
[ECO "D34"]
[WhiteElo "2722"]
[BlackElo "2670"]
[Annotator "TA"]
[PlyCount "106"]
[EventDate "2022.09.21"]
[EventType "tourn"]
[EventCountry "AZE"]
[SourceTitle "playchess.com"]
[Source "ChessBase"]
[SourceQuality "1"]
[TimeControl "900+10"]

{[%evp 24,106,33,35,42,33,20,14,33,29,28,31,23,21,30,33,49,42,42,37,36,33,49,44,58,48,53,45,58,40,37,16,23,0,0,0,0,0,0,0,0,0,0,0,6,0,0,0,15,11,11,11,11,14,14,14,20,0,0,0,0,0,0,0,0,0,0,-15,0,0,0,0,0,0,0,0,0,0,0,0,0,0,0,0,0]} 1. d4 {[%emt 0:00:03]} d5 {[%emt 0:00:02]} 2. c4 {[%emt 0:00:02]} e6 {[%emt 0:00:01]} 3. Nc3 {[%emt 0:00:02]} c5 {[%emt 0:00:01]} 4. cxd5 {[%emt 0:00:08]} exd5 {[%emt 0:00:01]} 5. Nf3 {[%emt 0:00:02]} Nf6 {[%emt 0:00:02]} 6. g3 {[%emt 0:00:16]} Nc6 {[%emt 0:00:13]} 7. Bg2 {[%emt 0:00:02]} Be7 {[%emt 0:00:01]} 8. O-O {[%emt 0:00:03]} O-O {[%emt 0:00:02]} 9. dxc5 {[%emt 0:00:49]} Bxc5 {[%emt 0:00:03]} 10. Na4 {[%emt 0:00:05]} Be7 {[%emt 0:00:18]} 11. Be3 {[%emt 0:00:04]} Re8 {[%emt 0:00:05]} 12. Rc1 {[%emt 0:00:13]} Bg4 {[%emt 0:00:14]} 13. h3 {[%emt 0:00:30]} Bxf3 {[%emt 0:00:16] D34: Tarrasch Defence: 6 g3 Nf6 7 Bg2 Be7.} 14. Bxf3 {[%emt 0:00:12]} Qd7 {[%emt 0:00:04]} 15. Bg2 {[%emt 0:00:09]} Rad8 {[%emt 0:00:07]} 16. Nc5 {[%emt 0:02:41]} Bxc5 {[%emt 0:00:06]} 17. Bxc5 {[%emt 0:00:04]} Ne4 {[%emt 0:00:43]} 18. e3 {[%emt 0:00:24]} Qe6 {[%emt 0:00:23]} 19. Bd4 {[%emt 0:00:29] [#]} Qg6 $146 {[%emt 0:00:48]} ({Predecessor:} 19... Rd7 20. Qd3 h5 21. h4 Nxd4 22. Qxd4 b6 23. Rc2 Red8 24. Kh2 Nf6 25. Bh3 Ng4+ {½-½ (109) Vastrukhin,O (2401)-Erdogdu,M (2396) Chess.com INT 2020}) 20. b3 {[%emt 0:00:26]} h6 {[%emt 0:03:25]} 21. Bb2 {[%emt 0:00:08] This bishop pair is nice.} a6 {[%emt 0:00:16]} 22. a3 {[%emt 0:00:57]} f6 {[%emt 0:04:41]} 23. b4 {[%emt 0:01:08]} Kh7 {[%emt 0:01:11]} 24. Qd3 {[%emt 0:00:36]} Qf5 {[%emt 0:01:02][%cal Oe4g3]} 25. Qc2 {[%emt 0:04:18]} Rc8 {[%emt 0:00:56]} 26. Qb1 {[%emt 0:01:19]} Kh8 {[%emt 0:00:10]} 27. Rcd1 {[%emt 0:00:11]} Ne7 {[%emt 0:00:33]} 28. Rc1 {[%emt 0:01:14]} Rxc1 {[%emt 0:00:36] The position is equal.} 29. Qxc1 {[%emt 0:00:01]} Rc8 {[%emt 0:00:06] Prevents Qc7.} 30. Qb1 {[%emt 0:00:17]} Rc4 {[%emt 0:00:14]} 31. Ba1 {[%emt 0:00:58]} Qc8 {[%emt 0:00:50] [#] ...Nd2 is the strong threat.} 32. Qd3 {[%emt 0:00:18] Against Nd2} b5 {[%emt 0:00:39]} 33. Bd4 {[%emt 0:00:15]} Qe6 {[%emt 0:00:09]} 34. Rd1 {[%emt 0:00:30]} Qf5 {[%emt 0:00:09]} 35. Qe2 {[%emt 0:00:12]} Qc8 {[%emt 0:00:44]} 36. Bxe4 {[%emt 0:00:17]} dxe4 {[%emt 0:00:01]} 37. Qh5 {[%emt 0:00:03][%cal Od4f6]} Qf5 {[%emt 0:00:54]} 38. Qxf5 {[%emt 0:00:38]} Nxf5 $11 {[%emt 0:00:02][%mdl 4096] Endgame KRB-KRN} 39. Bc5 {[%emt 0:00:02]} Kh7 {[%emt 0:01:09]} 40. Rd5 {[%emt 0:00:41]} Kg6 {[%emt 0:00:04]} 41. Rd7 {[%emt 0:00:02]} h5 {[%emt 0:00:21]} 42. Ra7 {[%emt 0:00:04]} Nh6 {[%emt 0:00:12]} 43. Bf8 {[%emt 0:00:53]} Nf7 {[%emt 0:00:02]} 44. Kf1 {[%emt 0:00:07]} Rc1+ {[%emt 0:00:12]} 45. Ke2 {[%emt 0:00:02]} Rc2+ {[%emt 0:00:01]} 46. Ke1 {[%emt 0:00:03]} Ne5 {[%emt 0:00:16]} 47. Rxg7+ {[%emt 0:00:07]} Kf5 {[%emt 0:00:01]} 48. Ra7 {[%emt 0:00:29]} Nd3+ {[%emt 0:00:23]} 49. Kd1 {[%emt 0:00:03]} Rb2 {[%emt 0:00:20]} 50. Rxa6 {[%emt 0:00:17]} Nxf2+ {[%emt 0:00:01]} 51. Kc1 {[%emt 0:00:25]} Nd3+ {[%emt 0:00:04]} 52. Kd1 {[%emt 0:00:01]} Nf2+ {[%emt 0:00:21]} 53. Kc1 {[%emt 0:00:02]} Nd3+ {Weighted Error Value: White=0.04 (flawless) /Black=0.04 (flawless)} 1/2-1/2

[Event "Susha Chess Rapid 2022"]
[Site "Shusha"]
[Date "2022.09.22"]
[Round "2.2"]
[White "Vidit, Santosh Gujrathi"]
[Black "Guseinov, Gadir"]
[Result "1-0"]
[ECO "A16"]
[WhiteElo "2710"]
[BlackElo "2661"]
[Annotator "TA"]
[PlyCount "87"]
[EventDate "2022.09.21"]
[EventType "tourn"]
[EventCountry "AZE"]
[SourceTitle "playchess.com"]
[Source "ChessBase"]
[SourceQuality "1"]
[TimeControl "900+10"]

{[%evp 16,87,25,26,54,61,47,54,80,85,98,77,89,94,86,76,74,85,117,104,110,104,145,104,104,86,97,88,134,125,135,157,183,72,204,209,334,189,281,293,289,275,305,306,358,353,529,529,504,490,607,599,583,577,808,806,777,757,895,650,978,977,810,820,746,791,770,723,29988,29989,29989,29990,29990,29978]} 1. c4 {[%emt 0:00:03]} Nf6 {[%emt 0:00:17]} 2. Nc3 {[%emt 0:00:26]} g6 {[%emt 0:00:02]} 3. g3 {[%emt 0:00:04]} Bg7 {[%emt 0:00:02]} 4. Bg2 {[%emt 0:00:06]} e5 {[%emt 0:00:17]} 5. d3 {[%emt 0:00:10]} d6 {[%emt 0:00:03]} 6. e4 {[%emt 0:00:27]} O-O {[%emt 0:00:03]} 7. Nge2 {[%emt 0:00:01]} c6 {[%emt 0:00:50]} 8. O-O {[%emt 0:00:16]} Na6 {[%emt 0:00:04]} 9. h3 {[%emt 0:01:47]} Ne8 {[%emt 0:03:43] A24: English Opening vs King's Indian: Lines without ...Nc6.} 10. Be3 {[%emt 0:00:42]} f5 {[%emt 0:00:05]} 11. exf5 {[%emt 0:00:08]} Bxf5 {[%emt 0:00:25] White is slightly better.} 12. d4 {[%emt 0:00:17] [#]} Nec7 $146 {[%emt 0:00:14]} ({Predecessor:} 12... Nf6 13. Qd2 Nc7 14. g4 Bc8 15. Rad1 exd4 16. Nxd4 Qd7 17. f4 d5 18. f5 dxc4 {1-0 (25) Kerr,S-Mordue,N Australia 2002}) 13. g4 {[%emt 0:00:59]} Be6 {[%emt 0:00:38]} 14. d5 {[%emt 0:00:04]} cxd5 {[%emt 0:00:09]} 15. cxd5 {[%emt 0:00:02]} ({Don't play} 15. Nxd5 Nxd5 16. Bxd5 Qe7 $14) 15... Bf7 {[%emt 0:00:17]} 16. a3 {[%emt 0:00:54][%cal Ba2a3,Ba3a4,Ba4a5][%mdl 32]} Nb8 {[%emt 0:01:10]} 17. Ng3 {[%emt 0:00:22]} Nd7 {[%emt 0:00:09]} 18. Rc1 {[%emt 0:00:45] White is more active.} Nb6 {[%emt 0:01:09]} 19. b3 {[%emt 0:01:28][%cal Bb2b3,Bb3b4][%mdl 32]} Kh8 {[%emt 0:00:50]} 20. a4 {[%emt 0:01:09]} Bg8 {[%emt 0:00:05]} 21. Qd2 {[%emt 0:00:54]} Qe7 {[%emt 0:01:04]} (21... Nc8 $142) 22. a5 $16 {[%emt 0:00:14]} Nd7 {[%emt 0:00:13]} 23. b4 {[%emt 0:00:10]} a6 {[%emt 0:00:27]} 24. Nge4 {[%emt 0:00:25]} (24. g5 $18 {and White stays clearly on top.}) 24... Ne8 {[%emt 0:00:13] [#] Black cannot hold the game after this.} (24... Nf6 $16) 25. g5 $1 $18 {[%emt 0:00:19]} Nc7 {[%emt 0:00:43] [#]} (25... Rc8 $142 26. b5 axb5) 26. h4 {[%emt 0:00:07]} (26. Nxd6 $142 $1 {[%cal Of1d1][%mdl 512] aiming for Rfd1!} Nxd5 (26... Qxd6 27. Ne4) 27. Bxd5 Qxd6 28. Rfd1 (28. Bxb7 Qxd2 29. Bxd2 Rab8 $18)) 26... Rad8 {[%emt 0:01:04]} (26... Rfc8 {was necessary.} 27. Bh3 Rf8) 27. Rfd1 {[%emt 0:00:20]} Ne8 {[%emt 0:00:08]} 28. Ne2 {[%emt 0:00:24]} Rf5 {[%emt 0:00:26]} 29. N2g3 {[%emt 0:00:21]} Qf7 {[%emt 0:00:24]} 30. h5 {[%emt 0:00:24][%cal Bh4h5,Bh5h6][%mdl 32]} ({Weaker is} 30. Nxf5 gxf5 31. Nc3 f4 $16) 30... Bf8 {[%emt 0:00:50]} (30... gxh5 $142 31. Nxf5 Qxf5) 31. Bh3 {[%emt 0:01:29]} Be7 {[%emt 0:01:10]} 32. Kg2 {[%emt 0:00:28]} Ng7 {[%emt 0:01:49]} 33. h6 {[%emt 0:00:37]} Ne8 {[%emt 0:00:02]} 34. f4 {[%emt 0:01:33]} Qf8 {[%emt 0:01:31]} 35. Nxf5 {[%emt 0:00:17]} gxf5 {[%emt 0:00:01]} 36. Ng3 {[%emt 0:00:03]} exf4 {[%emt 0:00:10]} 37. Bd4+ {[%emt 0:00:10]} Ne5 {[%emt 0:00:03]} 38. Qxf4 {[%emt 0:00:03]} Bxd5+ {[%emt 0:00:13]} 39. Kh2 {[%emt 0:00:26]} Kg8 {[%emt 0:00:07]} 40. Bxe5 {[%emt 0:00:12]} dxe5 {[%emt 0:00:01]} 41. Qxe5 {[%emt 0:00:02]} Bf7 {[%emt 0:00:22]} 42. Nxf5 {[%emt 0:00:14] White mates.} Bxg5 {[%emt 0:00:08]} 43. Rxd8 {[%emt 0:00:21]} Bxd8 {[%emt 0:00:08]} 44. Rg1+ {[%emt 0:00:08] Weighted Error Value: White=0.27 (precise) /Black=0.59} 1-0

[Event "Susha Chess Rapid 2022"]
[Site "Shusha"]
[Date "2022.09.22"]
[Round "2.3"]
[White "Mamedov, Rauf"]
[Black "Mamedyarov, Shakhriyar"]
[Result "0-1"]
[ECO "B06"]
[WhiteElo "2646"]
[BlackElo "2757"]
[Annotator "TA"]
[PlyCount "46"]
[EventDate "2022.09.21"]
[EventType "tourn"]
[EventCountry "AZE"]
[SourceTitle "playchess.com"]
[Source "ChessBase"]
[SourceQuality "1"]
[TimeControl "900+10"]

{[%evp 9,46,28,59,58,65,55,80,0,0,0,0,-148,-152,-151,-156,-154,-160,-204,-199,-204,-169,-198,-160,-324,-322,-313,-300,-677,-652,-627,-543,-529,-522,-544,-537,-508,-518,-608,-565]} 1. e4 {[%emt 0:00:01]} g6 {[%emt 0:00:01]} 2. d4 {[%emt 0:00:26]} Bg7 {[%emt 0:00:02]} 3. Nc3 {[%emt 0:00:29]} a6 {[%emt 0:00:08]} 4. h4 {[%emt 0:00:47]} d5 {[%emt 0:02:37]} 5. e5 {[%emt 0:01:36] [#]} f6 $146 {[%emt 0:00:50]} ({Predecessor:} 5... c5 6. dxc5 d4 7. Na4 Qa5+ 8. c3 dxc3 9. bxc3 Bd7 10. Nb6 Qxc3+ 11. Qd2 Qxa1 {0-1 (31) Cao,S (2488)-Bauer,C (2629) Dresden 2007}) 6. h5 {[%emt 0:02:51] Strongly threatening hxg6. B06: Modern Defence.} fxe5 {[%emt 0:00:29]} 7. dxe5 {[%emt 0:00:43]} d4 {[%emt 0:02:49]} 8. Bc4 {[%emt 0:02:34]} (8. Nce2 $16) 8... Nc6 $11 {[%emt 0:02:09][%cal Bb8c6,Bc6e5,Be5c4,Bc4b2][%mdl 32]} (8... dxc3 $2 9. Bf7+ $1 {[%mdl 512]} Kxf7 10. Qxd8 $18) 9. Ne4 {[%emt 0:01:58] Threatens to win with hxg6.} Nxe5 {[%emt 0:00:16]} 10. h6 {[%emt 0:01:38]} (10. Qe2 $11 {remains equal.}) 10... Nxh6 $1 $17 {[%emt 0:00:12]} 11. Bxh6 {[%emt 0:00:02]} Bxh6 {[%emt 0:00:02]} 12. Rxh6 {[%emt 0:00:02] Black must now prevent Qe2.} Nxc4 {[%emt 0:00:02]} 13. Qe2 {[%emt 0:00:01]} Nxb2 {[%emt 0:01:57]} 14. Nf3 {[%emt 0:02:02]} Bf5 {[%emt 0:01:03]} 15. Nf6+ {[%emt 0:01:14]} Kf7 {[%emt 0:00:02][%cal Be8f7,Bf7g7,Bg7g6][%mdl 32]} 16. Nxh7 {[%emt 0:00:04]} (16. Ne4 $17 {was worth a try.}) 16... Kg7 $19 {[%emt 0:00:33][%csl LRh6,LRh7]} 17. Nfg5 {[%emt 0:00:29] [#]} Qd6 {[%emt 0:00:30] Prevents Qe5+.} ({Weaker is} 17... Kxh6 18. Nf7+ Kxh7 19. Nxd8 Rhxd8 20. g4 $11) ({Inferior is} 17... d3 18. Qe5+ Kxh6 19. Nf7+ Kxh7 20. Nxd8 Rhxd8 21. Qxb2 $11) 18. g4 $2 {[%emt 0:00:42]} (18. Rh4 e5 19. Qf3) 18... d3 {[%emt 0:00:10] Black is clearly winning.} 19. gxf5 {[%emt 0:00:20]} dxe2 {[%emt 0:00:05]} 20. Rxg6+ {[%emt 0:00:01]} Qxg6 {[%emt 0:00:02]} 21. fxg6 {[%emt 0:00:00]} Kxg6 {[%emt 0:00:02]} 22. Rb1 {[%emt 0:00:01]} Na4 {[%emt 0:00:05] ...Nc3 is the strong threat.} 23. Rxb7 {[%emt 0:00:04]} Rab8 {[%emt 0:00:07] White got outplayed after the opening.  Weighted Error Value: White=0.81/Black=0.19 (very precise)} 0-1

[Event "Susha Chess Rapid 2022"]
[Site "Shusha"]
[Date "2022.09.22"]
[Round "2.4"]
[White "Maghsoodloo, Parham"]
[Black "Durarbayli, Vasif"]
[Result "1-0"]
[ECO "D44"]
[WhiteElo "2721"]
[BlackElo "2628"]
[Annotator "TA"]
[PlyCount "51"]
[EventDate "2022.09.21"]
[EventType "tourn"]
[EventCountry "AZE"]
[SourceTitle "playchess.com"]
[Source "ChessBase"]
[SourceQuality "1"]
[TimeControl "900+10"]

{[%evp 23,51,71,54,29,38,45,54,58,93,81,99,0,0,0,0,0,509,485,863,866,1098,1072,1900,520,542,539,542,300,947,552]} 1. d4 {[%emt 0:00:02]} d5 {[%emt 0:00:00]} 2. c4 {[%emt 0:00:02]} c6 {[%emt 0:00:01]} 3. Nf3 {[%emt 0:00:02]} Nf6 {[%emt 0:00:00]} 4. Nc3 {[%emt 0:00:02]} e6 {[%emt 0:00:01]} 5. Bg5 {[%emt 0:00:02]} dxc4 {[%emt 0:00:04]} 6. e4 {[%emt 0:00:03][%cal Be2e4,Be4e5][%mdl 32]} b5 {[%emt 0:00:02]} 7. e5 {[%emt 0:00:01]} h6 {[%emt 0:00:01]} 8. Bh4 {[%emt 0:00:02]} g5 {[%emt 0:00:01]} 9. Nxg5 {[%emt 0:00:01]} hxg5 {[%emt 0:00:01]} 10. Bxg5 {[%emt 0:00:02]} Be7 {[%emt 0:00:01]} 11. exf6 {[%emt 0:00:02]} Bxf6 {[%emt 0:00:01]} 12. Bxf6 {[%emt 0:00:01]} Qxf6 {[%emt 0:00:02]} 13. Be2 {[%emt 0:00:02][%cal Oc3b5] D44: Semi-Slav: Botvinnik System.} Na6 {[%emt 0:00:29]} 14. a4 {[%emt 0:00:01] [#]} Bb7 $146 {[%emt 0:01:07]} ({Predecessor:} 14... b4 15. Ne4 Qf4 16. Bf3 Rxh2 17. Ke2 Nc7 18. g3 Qh6 19. Qc2 Rxh1 20. Rxh1 Qg7 {1-0 (30) Mendonca,L (2571)-Mohammad Fahad,R (2401) Abu Dhabi 2022}) 15. axb5 {[%emt 0:00:02] White is slightly better.} cxb5 {[%emt 0:00:01]} 16. Nxb5 {[%emt 0:00:26] Nd6+ is the strong threat.} (16. Bf3 Bxf3 17. Qxf3 Qxf3 18. gxf3 Nb4 $17) 16... Kf8 {[%emt 0:00:59]} 17. Nd6 {[%emt 0:06:26]} (17. Bf3 $6 Bxf3 18. Qxf3 Qxf3 19. gxf3 Rh5 $11) (17. Qa4 $16) 17... Bxg2 $11 {[%emt 0:00:05]} 18. Rg1 {[%emt 0:00:01]} Rxh2 {[%emt 0:00:01][%cal Oa8d8] And now ...Rd8! would win.} 19. Rxa6 {[%emt 0:00:35] The board is on fire.} Rd8 $2 {[%emt 0:00:32][%mdl 8192]} (19... Bd5 $11 {and Black is okay.} 20. Rf1 Bg2) 20. Qd2 $18 {[%emt 0:03:33]} ({Weaker is} 20. Bxc4 Bb7 $1 {[%mdl 512]} 21. Qd2 Bxa6 $16) 20... Bb7 {[%emt 0:06:23]} (20... Qh4 $142) 21. Ne4 {[%emt 0:00:21][%cal Bd6e4,Be4g5,Bg5f7,Bf7e5][%mdl 32]} Qe7 {[%emt 0:00:49]} 22. Rxa7 {[%emt 0:00:05][%cal Oe4f6] Strongly threatening Nf6!} Rh4 {[%emt 0:00:11] [#]} 23. Qg5 {[%emt 0:01:04]} (23. Nf6 $142 $1 {[%mdl 512]} Qxf6 24. Qb4+ Qe7 {[#]} 25. Rg8+ $3 {[%mdl 512]} Kxg8 26. Qxe7 Rh1+ 27. Kd2) 23... Qxg5 {[%emt 0:00:45]} 24. Nxg5 {[%emt 0:00:01]} Rb8 {[%emt 0:00:03]} 25. Nxf7 {[%emt 0:00:48]} Rxd4 $2 {[%emt 0:01:26]} (25... Kxf7 26. Bf3 (26. Bxc4 Rxd4 27. b3 Kf6 $14) 26... Rxd4 27. Rxb7+ Rxb7) 26. Ne5 {[%emt 0:00:52] Weighted Error Value: White=0.85/Black=0.72} 1-0

[Event "Susha Chess Rapid 2022"]
[Site "Shusha"]
[Date "2022.09.22"]
[Round "2.5"]
[White "Yilmaz, Mustafa"]
[Black "Radjabov, Teimour"]
[Result "0-1"]
[ECO "E18"]
[WhiteElo "2633"]
[BlackElo "2747"]
[Annotator "TA"]
[PlyCount "92"]
[EventDate "2022.09.21"]
[EventType "tourn"]
[EventCountry "AZE"]
[SourceTitle "playchess.com"]
[Source "ChessBase"]
[SourceQuality "1"]
[TimeControl "900+10"]

{[%evp 17,92,28,31,15,22,19,36,32,41,16,27,5,21,0,37,23,22,18,20,7,15,0,10,0,0,0,19,-31,-16,-34,-25,-56,-50,-77,-79,-70,-41,-54,-65,-41,-50,-70,0,0,-3,-3,0,-19,0,0,0,0,0,0,0,0,0,-347,0,0,-8,-33,-43,-2271,-1757,-1512,-598,-587,-553,-29974,-29975,-29988,-29989,-29989,-29990,-29993,-29994]} 1. d4 {[%emt 0:00:01]} Nf6 {[%emt 0:00:01]} 2. c4 {[%emt 0:00:02]} e6 {[%emt 0:00:02]} 3. Nf3 {[%emt 0:00:02]} b6 {[%emt 0:00:01]} 4. g3 {[%emt 0:00:03]} Bb7 {[%emt 0:00:02]} 5. Bg2 {[%emt 0:00:01]} Be7 {[%emt 0:00:02]} 6. O-O {[%emt 0:00:03]} O-O {[%emt 0:00:03]} 7. Nc3 {[%emt 0:00:05]} Ne4 {[%emt 0:00:12]} 8. Bd2 {[%emt 0:00:01]} Nxd2 {[%emt 0:00:12]} 9. Qxd2 {[%emt 0:00:03]} d6 {[%emt 0:00:04]} 10. e4 {[%emt 0:00:16] E18: Queen's Indian: Old Main Line (4 g3 Bb7 5 Bg2 Be7 6 0-0 0-0 7 Nc3).} Nd7 {[%emt 0:00:03][%cal Bb8d7,Bd7f6,Bf6h5,Bh5g7][%mdl 32]} 11. Rfe1 {[%emt 0:00:25]} c5 $5 {[%emt 0:00:57][%mdl 4] Exploring less charted territory.} 12. d5 {[%emt 0:01:38] White is slightly better.} e5 {[%emt 0:00:03] [#]} 13. h4 $146 {[%emt 0:00:08]} ({Predecessor:} 13. h3 g6 14. Nh2 Bf6 15. Nf1 Bg7 16. a3 f5 17. f3 Nf6 18. Qd3 Bc8 19. Kh2 fxe4 20. fxe4 {0-1 (50) Shafigullina,Z (2269)-Bulmaga,I (2434) Moscow 2019}) 13... g6 {[%emt 0:00:55]} 14. Bh3 {[%emt 0:00:51]} Nf6 {[%emt 0:00:02]} 15. Kg2 {[%emt 0:00:04]} Re8 {[%emt 0:01:26]} 16. a3 {[%emt 0:01:38]} Bc8 {[%emt 0:00:51]} 17. Bxc8 {[%emt 0:00:04]} (17. Ng5 {with more complications.} Nh5 18. Bxc8 Qxc8 19. Nh3) 17... Qxc8 {[%emt 0:00:02]} 18. Rh1 {[%emt 0:00:20]} (18. Ng5 {is interesting.} Nh5 19. Nh3 Qg4 20. Qe2) 18... Nh5 {[%emt 0:00:10]} 19. Rag1 {[%emt 0:02:34]} (19. Ng5 {keeps more tension.} Rf8 20. Nh3 f5 21. exf5 Qxf5 22. Qe2) 19... Rf8 {[%emt 0:00:56]} 20. Kf1 {[%emt 0:00:40]} f5 {[%emt 0:01:51]} 21. Qe2 {[%emt 0:01:09]} Ng7 {[%emt 0:01:51]} 22. Nd2 {[%emt 0:01:23]} (22. exf5 $11 Nxf5 23. Kg2) 22... a6 {[%emt 0:01:15]} 23. a4 {[%emt 0:01:08]} (23. Nd1 {seems wilder.} fxe4 24. Kg2 Rb8 25. Ne3) 23... Qd7 {[%emt 0:00:23]} 24. exf5 {[%emt 0:02:23]} Nxf5 {[%emt 0:00:46]} 25. Nf3 {[%emt 0:00:30]} Nd4 {[%emt 0:01:10] Black is more active.} 26. Nxd4 {[%emt 0:00:02]} cxd4 {[%emt 0:00:02]} 27. Ne4 {[%emt 0:00:08]} Qxa4 {[%emt 0:00:01]} 28. h5 {[%emt 0:01:16] [#] And now hxg6 would win.} g5 {[%emt 0:00:09][%cal Bg6g5,Bg5g4][%mdl 32] Strongly threatening ...Rac8.} 29. Kg2 {[%emt 0:00:27]} Kh8 {[%emt 0:01:53]} (29... Qd7 $15) 30. Ra1 $11 {[%emt 0:01:06]} Qd7 {[%emt 0:00:01]} 31. Ra3 {[%emt 0:00:05]} a5 {[%emt 0:02:07]} 32. Rb1 {[%emt 0:00:01]} g4 {[%emt 0:00:25]} 33. b4 $1 {[%emt 0:00:02]} axb4 {[%emt 0:00:56]} 34. Rxa8 {[%emt 0:00:12]} Rxa8 {[%emt 0:00:01]} 35. Rxb4 {[%emt 0:00:03]} Bd8 {[%emt 0:01:02]} 36. Rb2 {[%emt 0:01:06]} Kg7 {[%emt 0:00:02]} 37. Ra2 $2 {[%emt 0:00:18][%mdl 8192] [#] Against Ra1} (37. Qd1 $11) 37... Rxa2 $2 {[%emt 0:00:52]} (37... d3 $1 $19 {[%cal Rd3e2]} 38. Qd2 (38. h6+ $2 Kg6 $19) 38... Rxa2 39. Qxa2 Qf5 40. Nxd6 (40. h6+ $2 Kg6 $19) 40... Qf3+ 41. Kg1 Kh6) 38. Qxa2 $19 {[%emt 0:00:01][%mdl 4096] Endgame KQB-KQN} Kh6 {[%emt 0:00:07]} 39. Qa3 {[%emt 0:01:01]} Be7 $36 {[%emt 0:00:09][%mdl 2048] Black is more active.} 40. Qa8 $2 {[%emt 0:00:16][%mdl 8192] This move loses the game for White.} (40. Kg1 $15) 40... Qf5 {[%emt 0:00:06]} 41. Nd2 {[%emt 0:00:04]} Bg5 {[%emt 0:00:03]} ({Stronger than} 41... Qxh5 42. Qb7 Qe8 43. Qxb6 $17) (41... e4 $142 {( -> ...e3)} 42. Qa1 e3) 42. Nf1 {[%emt 0:00:13]} e4 {[%emt 0:00:16]} 43. Qb8 {[%emt 0:00:07]} e3 {[%emt 0:00:03] Black mates.} 44. Qxd6+ {[%emt 0:00:17]} Kxh5 {[%emt 0:00:01]} 45. fxe3 {[%emt 0:00:03]} dxe3 {[%emt 0:00:04]} 46. Nh2 {[%emt 0:00:11]} Qe4+ {[%emt 0:00:03] Weighted Error Value: White=0.54/Black=0.29 (precise)} 0-1

[Event "Susha Chess Rapid 2022"]
[Site "Shusha"]
[Date "2022.09.22"]
[Round "3.1"]
[White "Durarbayli, Vasif"]
[Black "Yilmaz, Mustafa"]
[Result "1/2-1/2"]
[ECO "B92"]
[WhiteElo "2628"]
[BlackElo "2633"]
[Annotator "TA"]
[PlyCount "76"]
[EventDate "2022.09.21"]
[EventType "tourn"]
[EventCountry "AZE"]
[SourceTitle "playchess.com"]
[Source "ChessBase"]
[SourceQuality "1"]
[TimeControl "900+10"]

{[%evp 21,76,22,18,4,-1,0,39,41,44,56,84,25,95,104,92,39,61,74,70,68,77,71,85,71,68,68,66,64,95,104,104,110,99,100,112,58,116,75,345,66,66,64,68,65,67,68,68,68,68,68,62,61,61,0,54,0,56]} 1. e4 {[%emt 0:00:01]} c5 {[%emt 0:00:01]} 2. Nf3 {[%emt 0:00:01]} d6 {[%emt 0:00:01]} 3. d4 {[%emt 0:00:00]} cxd4 {[%emt 0:00:01]} 4. Nxd4 {[%emt 0:00:02]} Nf6 {[%emt 0:00:02]} 5. Nc3 {[%emt 0:00:01]} a6 {[%emt 0:00:01]} 6. Be2 {[%emt 0:00:01]} e5 {[%emt 0:00:02]} 7. Nb3 {[%emt 0:00:00]} Be7 {[%emt 0:00:02]} 8. Be3 {[%emt 0:00:02]} Be6 {[%emt 0:00:05]} 9. Nd5 {[%emt 0:00:01]} Nbd7 {[%emt 0:00:12]} 10. Qd3 {[%emt 0:00:02]} Bxd5 {[%emt 0:00:42]} 11. exd5 {[%emt 0:00:02]} Rc8 {[%emt 0:00:01] now supersedes 11...0-0.} 12. O-O-O {[%emt 0:00:01] B92: Sicilian Najdorf: 6 Be2.} Nb6 {[%emt 0:00:56]} 13. Kb1 {[%emt 0:00:02] [#]} Qc7 $146 {[%emt 0:00:16]} ({Predecessor:} 13... Nc4 14. Bc1 h5 15. h3 h4 16. g4 Nd7 17. Qe4 b5 18. f4 exf4 19. Nd4 Nce5 20. Bxf4 {½-½ (62) Najer,E (2661)-Saric,I (2669) Warsaw 2021}) 14. Bf3 {[%emt 0:01:31] White is slightly better.} O-O {[%emt 0:00:18]} 15. g4 {[%emt 0:00:59]} Rfe8 {[%emt 0:00:25]} 16. Rhe1 {[%emt 0:00:50]} (16. Nd2 $16) 16... Bf8 {[%emt 0:01:46] [#]} (16... Nc4 $11 {keeps the balance.} 17. Bc1 h6) 17. Nd2 $1 $16 {[%emt 0:02:32]} Nc4 {[%emt 0:03:36][%cal Oe5e4]} 18. Nxc4 {[%emt 0:01:40]} ({White should try} 18. g5 $16 Nd7 19. Bg4 Nxe3 20. Rxe3) 18... Qxc4 {[%emt 0:00:02]} 19. Qxc4 {[%emt 0:00:02]} Rxc4 {[%emt 0:00:02]} 20. Be2 {[%emt 0:00:21]} Rcc8 {[%emt 0:00:44]} 21. g5 {[%emt 0:00:36]} Nd7 {[%emt 0:00:14]} 22. Bg4 {[%emt 0:00:06]} Rc7 {[%emt 0:00:45]} 23. h4 {[%emt 0:00:50][%cal Bh2h4,Bh4h5][%mdl 32] White is more active.} b5 {[%emt 0:00:31]} 24. h5 {[%emt 0:00:23][%cal Og5g6]} Nc5 {[%emt 0:00:33]} 25. g6 {[%emt 0:00:33]} Be7 {[%emt 0:00:14]} 26. gxf7+ {[%emt 0:03:16]} Kxf7 {[%emt 0:00:01]} 27. f4 {[%emt 0:00:02]} Bf6 {[%emt 0:03:01]} 28. Rg1 {[%emt 0:00:06]} (28. h6 $1 $16) 28... b4 {[%emt 0:02:20]} (28... exf4 $14 29. Bxf4 Be5) 29. Rdf1 {[%emt 0:00:43][%cal Oh5h6] [#] Hoping for h6!} a5 $2 {[%emt 0:01:46][%mdl 8192]} (29... e4 $16) 30. Bf5 $2 {[%emt 0:00:11] A strong pair of Bishops.} (30. h6 $1 $18) 30... Kg8 $14 {[%emt 0:00:05]} 31. Bxc5 {[%emt 0:01:31]} Rxc5 {[%emt 0:00:05]} 32. fxe5 {[%emt 0:00:03]} Bxe5 {[%emt 0:00:52]} 33. Be6+ {[%emt 0:01:43]} Kh8 {[%emt 0:00:34]} 34. Rf7 $1 {[%emt 0:00:01] And now Rgf1 would win.} h6 {[%emt 0:00:13]} 35. Rgf1 $1 {[%emt 0:00:00]} Bf6 {[%emt 0:00:12]} 36. Rd7 {[%emt 0:00:06]} Be5 {[%emt 0:00:09]} 37. Rdf7 {[%emt 0:02:35] Rf8+ would kill now.} Bf6 {[%emt 0:00:03]} 38. Rd7 {[%emt 0:00:02]} Be5 $1 {[%emt 0:00:02] Weighted Error Value: White=0.24 (precise) /Black=0.29 (precise)} 1/2-1/2